[Event "Late-Titled-Tuesday-Blitz-October-24-2023"]
[Site "Chess.com"]
[Date "2023.10.24"]
[Round "7"]
[White "Schwindle"]
[Black "GMJustin"]
[Result "1-0"]
[WhiteElo "2411"]
[BlackElo "2260"]
[TimeControl "180+1"]
[EndTime "15:15:25 PDT"]
[Termination "Schwindle won on time"]

1. e4 {[%clk 0:03:00.9]} 1... c5 {[%clk 0:02:55.2]} 2. Nf3 {[%clk 0:03:01.2]}
2... Nc6 {[%clk 0:02:54.8]} 3. d4 {[%clk 0:03:00.6]} 3... cxd4 {[%clk
0:02:55.2]} 4. Nxd4 {[%clk 0:03:01.5]} 4... Nf6 {[%clk 0:02:55.1]} 5. Nc3 {[%clk
0:03:01.3]} 5... h5 {[%clk 0:02:55.3]} 6. h3 {[%clk 0:02:54.6]} 6... d6 {[%clk
0:02:44]} 7. Bc4 {[%clk 0:02:52.7]} 7... e6 {[%clk 0:02:37.1]} 8. O-O {[%clk
0:02:51.5]} 8... Bd7 {[%clk 0:02:16.5]} 9. Ndb5 {[%clk 0:02:40.8]} 9... Qb8
{[%clk 0:02:12]} 10. Bf4 {[%clk 0:02:40.1]} 10... Ne5 {[%clk 0:02:07.8]} 11. Bb3
{[%clk 0:02:22.1]} 11... a6 {[%clk 0:01:46.1]} 12. Nd4 {[%clk 0:02:22.1]} 12...
b5 {[%clk 0:01:45.5]} 13. a3 {[%clk 0:02:20.9]} 13... Qb7 {[%clk 0:01:39.6]} 14.
Re1 {[%clk 0:02:20]} 14... h4 {[%clk 0:01:33.8]} 15. Bxe5 {[%clk 0:02:12.5]}
15... dxe5 {[%clk 0:01:33.5]} 16. Nf3 {[%clk 0:02:13.1]} 16... Qc7 {[%clk
0:01:26]} 17. Qe2 {[%clk 0:02:00.8]} 17... Bc6 {[%clk 0:01:21.1]} 18. Rad1
{[%clk 0:02:00.1]} 18... Be7 {[%clk 0:01:11]} 19. Qe3 {[%clk 0:01:56.1]} 19...
Bb7 {[%clk 0:00:59.9]} 20. Ng5 {[%clk 0:01:36.2]} 20... Nh5 {[%clk 0:00:49.1]}
21. Bxe6 {[%clk 0:01:26.2]} 21... Bxg5 {[%clk 0:00:38.5]} 22. Qxg5 {[%clk
0:01:25.5]} 22... fxe6 {[%clk 0:00:36.4]} 23. Qg6+ {[%clk 0:01:21.6]} 23... Kf8
{[%clk 0:00:25.3]} 24. Qxe6 {[%clk 0:01:18]} 24... Nf6 {[%clk 0:00:16.7]} 25.
Nd5 {[%clk 0:01:14.5]} 25... Bxd5 {[%clk 0:00:12.7]} 26. exd5 {[%clk 0:01:14.5]}
26... Re8 {[%clk 0:00:06.4]} 27. Qxa6 {[%clk 0:01:12.1]} 27... Qxc2 {[%clk
0:00:05.5]} 28. Qxb5 {[%clk 0:01:08.1]} 28... Kf7 {[%clk 0:00:05.7]} 29. Rc1
{[%clk 0:01:01.4]} 29... Qf5 {[%clk 0:00:04.8]} 30. d6 {[%clk 0:00:49.9]} 30...
Rd8 {[%clk 0:00:04.4]} 31. Rc7+ {[%clk 0:00:47.6]} 31... Kg6 {[%clk 0:00:04]}
32. Qb7 {[%clk 0:00:41.5]} 32... Rxd6 {[%clk 0:00:03.4]} 33. Rxg7+ {[%clk
0:00:41.4]} 33... Kh6 {[%clk 0:00:03.7]} 34. Re7 {[%clk 0:00:32.8]} 34... Rd2
{[%clk 0:00:03.4]} 35. Rf1 {[%clk 0:00:26.7]} 35... Rg8 {[%clk 0:00:03.5]} 36.
Rf7 {[%clk 0:00:13.7]} 36... Qg6 {[%clk 0:00:03.1]} 37. Kh1 {[%clk 0:00:09.1]}
1-0

[Event "Late-Titled-Tuesday-Blitz-October-24-2023"]
[Site "Chess.com"]
[Date "2023.10.24"]
[Round "7"]
[White "Makswolf200817"]
[Black "sergiochess83"]
[Result "0-1"]
[WhiteElo "2619"]
[BlackElo "2873"]
[TimeControl "180+1"]
[EndTime "15:15:29 PDT"]
[Termination "sergiochess83 won by resignation"]

1. Nf3 {[%clk 0:03:00.9]} 1... d5 {[%clk 0:02:52.2]} 2. e3 {[%clk 0:03:00.8]}
2... c5 {[%clk 0:02:49.4]} 3. c4 {[%clk 0:02:58.8]} 3... d4 {[%clk 0:02:48.6]}
4. exd4 {[%clk 0:02:52.4]} 4... cxd4 {[%clk 0:02:48.8]} 5. d3 {[%clk 0:02:53.1]}
5... Nc6 {[%clk 0:02:49.1]} 6. g3 {[%clk 0:02:53.5]} 6... e5 {[%clk 0:02:33.4]}
7. Bg2 {[%clk 0:02:52.6]} 7... f6 {[%clk 0:02:12.7]} 8. O-O {[%clk 0:02:49.1]}
8... Nge7 {[%clk 0:02:08.6]} 9. a3 {[%clk 0:02:47.8]} 9... a5 {[%clk 0:02:08]}
10. Nbd2 {[%clk 0:02:44.4]} 10... Ng6 {[%clk 0:01:56.9]} 11. Rb1 {[%clk
0:02:27.3]} 11... Be7 {[%clk 0:01:50.3]} 12. h4 {[%clk 0:02:19.4]} 12... O-O
{[%clk 0:01:48.8]} 13. h5 {[%clk 0:02:14]} 13... Nh8 {[%clk 0:01:48.9]} 14. Nh4
{[%clk 0:02:13.7]} 14... Be6 {[%clk 0:01:33.7]} 15. Re1 {[%clk 0:01:58]} 15...
Nf7 {[%clk 0:01:31.4]} 16. Qe2 {[%clk 0:01:36.9]} 16... Qd7 {[%clk 0:01:29.3]}
17. b3 {[%clk 0:01:15.2]} 17... Rae8 {[%clk 0:01:21.6]} 18. Nf1 {[%clk
0:01:08.5]} 18... f5 {[%clk 0:01:18.2]} 19. Nf3 {[%clk 0:01:07.5]} 19... Bf6
{[%clk 0:01:11.5]} 20. b4 {[%clk 0:00:51.8]} 20... axb4 {[%clk 0:01:09]} 21.
axb4 {[%clk 0:00:52.7]} 21... e4 {[%clk 0:01:08.1]} 22. N3d2 {[%clk 0:00:38.6]}
22... Ng5 {[%clk 0:01:01.8]} 23. dxe4 {[%clk 0:00:33.1]} 23... d3 {[%clk
0:00:57.5]} 24. Qd1 {[%clk 0:00:33.5]} 24... fxe4 {[%clk 0:00:48.2]} 25. Nxe4
{[%clk 0:00:25]} 25... Bg4 {[%clk 0:00:48]} 26. Nxf6+ {[%clk 0:00:23.6]} 26...
gxf6 {[%clk 0:00:42.6]} 27. Qd2 {[%clk 0:00:19.9]} 27... Nd4 {[%clk 0:00:36.4]}
28. Kh1 {[%clk 0:00:13.5]} 28... Bf3 {[%clk 0:00:25.4]} 29. Nh2 {[%clk
0:00:08.3]} 29... Qh3 {[%clk 0:00:15.8]} 30. Rg1 {[%clk 0:00:08.5]} 30... Bxg2+
{[%clk 0:00:11.7]} 31. Rxg2 {[%clk 0:00:09.4]} 31... Ngf3 {[%clk 0:00:10.3]} 32.
Qd1 {[%clk 0:00:04]} 32... Re1+ {[%clk 0:00:08.6]} 33. Qxe1 {[%clk 0:00:04.5]}
33... Nxe1 {[%clk 0:00:09.5]} 34. Rg1 {[%clk 0:00:05.2]} 34... Ndf3 {[%clk
0:00:09.2]} 0-1

[Event "Late-Titled-Tuesday-Blitz-October-24-2023"]
[Site "Chess.com"]
[Date "2023.10.24"]
[Round "7"]
[White "eljanov"]
[Black "Zhigalko_Sergei"]
[Result "1-0"]
[WhiteElo "2822"]
[BlackElo "2949"]
[TimeControl "180+1"]
[EndTime "15:15:31 PDT"]
[Termination "eljanov won by checkmate"]

1. d4 {[%clk 0:03:00.9]} 1... Nf6 {[%clk 0:03:00.2]} 2. Bf4 {[%clk 0:03:00.5]}
2... d5 {[%clk 0:02:53.6]} 3. e3 {[%clk 0:03:00.3]} 3... c5 {[%clk 0:02:54]} 4.
Nf3 {[%clk 0:02:59.4]} 4... Nc6 {[%clk 0:02:53.7]} 5. Nbd2 {[%clk 0:02:59.4]}
5... cxd4 {[%clk 0:02:40.4]} 6. exd4 {[%clk 0:02:59.3]} 6... Bg4 {[%clk
0:02:38.8]} 7. c3 {[%clk 0:02:56.5]} 7... e6 {[%clk 0:02:32.8]} 8. Bb5 {[%clk
0:02:50.1]} 8... Bd6 {[%clk 0:02:28.6]} 9. Bxd6 {[%clk 0:02:47.2]} 9... Qxd6
{[%clk 0:02:28.5]} 10. O-O {[%clk 0:02:47.5]} 10... O-O {[%clk 0:02:28]} 11. Re1
{[%clk 0:02:47.2]} 11... a6 {[%clk 0:02:14.3]} 12. Bd3 {[%clk 0:02:46.7]} 12...
Rfc8 {[%clk 0:02:02.3]} 13. Qe2 {[%clk 0:02:20.7]} 13... Bh5 {[%clk 0:01:44.8]}
14. Qe3 {[%clk 0:02:13.4]} 14... Bg6 {[%clk 0:01:38.2]} 15. Bxg6 {[%clk
0:02:11.5]} 15... hxg6 {[%clk 0:01:35.9]} 16. Ne5 {[%clk 0:02:12.4]} 16... b5
{[%clk 0:01:10.4]} 17. a3 {[%clk 0:02:04.3]} 17... a5 {[%clk 0:01:07.8]} 18. b4
{[%clk 0:01:57.8]} 18... axb4 {[%clk 0:00:45.6]} 19. axb4 {[%clk 0:01:58.7]}
19... Qc7 {[%clk 0:00:43.3]} 20. Nd3 {[%clk 0:01:58.2]} 20... Ne7 {[%clk
0:00:33.2]} 21. Nc5 {[%clk 0:01:53.9]} 21... Nf5 {[%clk 0:00:33.4]} 22. Qd3
{[%clk 0:01:53.4]} 22... Nd6 {[%clk 0:00:33.3]} 23. g3 {[%clk 0:01:48.9]} 23...
Nc4 {[%clk 0:00:32.3]} 24. Kg2 {[%clk 0:01:36.2]} 24... Qd8 {[%clk 0:00:30]} 25.
h4 {[%clk 0:01:32.7]} 25... Rxa1 {[%clk 0:00:29.5]} 26. Rxa1 {[%clk 0:01:32.1]}
26... Ra8 {[%clk 0:00:30.4]} 27. Rxa8 {[%clk 0:00:41.1]} 27... Qxa8 {[%clk
0:00:30.1]} 28. Qc2 {[%clk 0:00:40.6]} 28... Ng4 {[%clk 0:00:26.5]} 29. Nxc4
{[%clk 0:00:35.6]} 29... bxc4 {[%clk 0:00:03.2]} 30. b5 {[%clk 0:00:34.1]} 30...
Qb8 {[%clk 0:00:01.7]} 31. Qb2 {[%clk 0:00:33.5]} 31... Qb6 {[%clk 0:00:01.5]}
32. Na4 {[%clk 0:00:33.5]} 32... Qb8 {[%clk 0:00:01.3]} 33. b6 {[%clk
0:00:33.7]} 33... e5 {[%clk 0:00:01.9]} 34. b7 {[%clk 0:00:30.9]} 34... exd4
{[%clk 0:00:02.8]} 35. cxd4 {[%clk 0:00:31]} 35... Nf6 {[%clk 0:00:01.7]} 36.
Qb5 {[%clk 0:00:28.9]} 36... c3 {[%clk 0:00:01.7]} 37. Nxc3 {[%clk 0:00:28.1]}
37... Kh7 {[%clk 0:00:01.7]} 38. Qc6 {[%clk 0:00:27.7]} 38... Qd8 {[%clk
0:00:01.3]} 39. Qc8 {[%clk 0:00:25.2]} 39... Qa5 {[%clk 0:00:01.6]} 40. b8=Q
{[%clk 0:00:25.1]} 40... g5 {[%clk 0:00:01.9]} 41. h5 {[%clk 0:00:24.1]} 41...
g4 {[%clk 0:00:01.6]} 42. Qh8# {[%clk 0:00:23.5]} 1-0

[Event "Late-Titled-Tuesday-Blitz-October-24-2023"]
[Site "Chess.com"]
[Date "2023.10.24"]
[Round "7"]
[White "WindWhistler11"]
[Black "meoluoi91"]
[Result "0-1"]
[WhiteElo "2429"]
[BlackElo "2600"]
[TimeControl "180+1"]
[EndTime "15:15:34 PDT"]
[Termination "meoluoi91 won by resignation"]

1. Nf3 {[%clk 0:03:00.7]} 1... Nf6 {[%clk 0:02:57.6]} 2. g3 {[%clk 0:02:58.5]}
2... g6 {[%clk 0:02:57.4]} 3. Bg2 {[%clk 0:02:58.7]} 3... Bg7 {[%clk 0:02:58.3]}
4. O-O {[%clk 0:02:59]} 4... O-O {[%clk 0:02:59]} 5. c4 {[%clk 0:02:57.2]} 5...
c6 {[%clk 0:02:59.1]} 6. b3 {[%clk 0:02:54]} 6... Ne4 {[%clk 0:02:54.4]} 7. d4
{[%clk 0:02:53]} 7... d5 {[%clk 0:02:54.3]} 8. Bb2 {[%clk 0:02:52.7]} 8... Be6
{[%clk 0:02:50.5]} 9. Qc2 {[%clk 0:02:48.4]} 9... Bf5 {[%clk 0:02:47.2]} 10. Qd1
{[%clk 0:02:33.1]} 10... Na6 {[%clk 0:02:25.1]} 11. Nh4 {[%clk 0:02:07.3]} 11...
Be6 {[%clk 0:02:22]} 12. c5 {[%clk 0:02:03.3]} 12... Nexc5 {[%clk 0:02:13.7]}
13. Nd2 {[%clk 0:01:59.2]} 13... Nd7 {[%clk 0:02:12.6]} 14. Nhf3 {[%clk
0:01:56.4]} 14... h6 {[%clk 0:02:07.7]} 15. a3 {[%clk 0:01:52.5]} 15... Nc7
{[%clk 0:02:06.4]} 16. b4 {[%clk 0:01:52.4]} 16... a5 {[%clk 0:02:05.7]} 17. Nb3
{[%clk 0:01:51.5]} 17... axb4 {[%clk 0:01:58.6]} 18. axb4 {[%clk 0:01:52.4]}
18... Nb5 {[%clk 0:01:58.3]} 19. Na5 {[%clk 0:01:51.5]} 19... Qb6 {[%clk
0:01:53.9]} 20. e3 {[%clk 0:01:49.5]} 20... Nd6 {[%clk 0:01:49.7]} 21. Bc3
{[%clk 0:01:45]} 21... Ne4 {[%clk 0:01:45]} 22. Be1 {[%clk 0:01:43.7]} 22...
Rfb8 {[%clk 0:01:35.8]} 23. Nd2 {[%clk 0:01:38.1]} 23... Nxd2 {[%clk 0:01:24.5]}
24. Bxd2 {[%clk 0:01:37.3]} 24... Nf6 {[%clk 0:01:24.5]} 25. Qc1 {[%clk
0:01:31.5]} 25... Bf5 {[%clk 0:01:24]} 26. Qc5 {[%clk 0:01:23.1]} 26... Qd8
{[%clk 0:01:11]} 27. Qc3 {[%clk 0:01:17]} 27... Ne4 {[%clk 0:01:09.9]} 28. Bxe4
{[%clk 0:01:16.6]} 28... Bxe4 {[%clk 0:01:10]} 29. f3 {[%clk 0:01:17.1]} 29...
Bf5 {[%clk 0:01:09.5]} 30. Rfe1 {[%clk 0:01:17.1]} 30... Bd7 {[%clk 0:01:05.8]}
31. e4 {[%clk 0:01:10.2]} 31... dxe4 {[%clk 0:01:03.7]} 32. fxe4 {[%clk
0:01:11.1]} 32... Be6 {[%clk 0:01:04.1]} 33. Be3 {[%clk 0:01:08.9]} 33... Qd7
{[%clk 0:01:03.1]} 34. Rad1 {[%clk 0:01:05]} 34... Rd8 {[%clk 0:01:03.2]} 35. b5
{[%clk 0:00:52.8]} 35... cxb5 {[%clk 0:00:59.2]} 36. Qb4 {[%clk 0:00:50.7]}
36... b6 {[%clk 0:00:54.4]} 37. Nb3 {[%clk 0:00:46.5]} 37... Ra4 {[%clk
0:00:54.4]} 38. Qc3 {[%clk 0:00:44.7]} 38... Rc8 {[%clk 0:00:53.7]} 39. Qb2
{[%clk 0:00:37.6]} 39... Rb4 {[%clk 0:00:51.2]} 40. Rd3 {[%clk 0:00:34.8]} 40...
Bc4 {[%clk 0:00:50.5]} 41. Rc3 {[%clk 0:00:33.4]} 41... Qe6 {[%clk 0:00:44.1]}
42. d5 {[%clk 0:00:32]} 42... Qxe4 {[%clk 0:00:37.7]} 43. Bd2 {[%clk 0:00:29.2]}
43... Qxd5 {[%clk 0:00:36.5]} 44. Qc2 {[%clk 0:00:21.9]} 44... Rd8 {[%clk
0:00:35.8]} 0-1

[Event "Late-Titled-Tuesday-Blitz-October-24-2023"]
[Site "Chess.com"]
[Date "2023.10.24"]
[Round "7"]
[White "GMKrikor"]
[Black "Grischuk"]
[Result "0-1"]
[WhiteElo "2822"]
[BlackElo "2992"]
[TimeControl "180+1"]
[EndTime "15:15:38 PDT"]
[Termination "Grischuk won on time"]

1. Nf3 {[%clk 0:03:00.9]} 1... d5 {[%clk 0:02:57.5]} 2. c4 {[%clk 0:03:00.7]}
2... e6 {[%clk 0:02:53.4]} 3. d4 {[%clk 0:03:00.4]} 3... Nf6 {[%clk 0:02:52.8]}
4. cxd5 {[%clk 0:03:00.8]} 4... exd5 {[%clk 0:02:52.9]} 5. Nc3 {[%clk
0:03:01.5]} 5... c6 {[%clk 0:02:52]} 6. Bf4 {[%clk 0:03:01.6]} 6... Bf5 {[%clk
0:02:37.6]} 7. e3 {[%clk 0:02:58.5]} 7... Bd6 {[%clk 0:02:33.5]} 8. Bxd6 {[%clk
0:02:58.5]} 8... Qxd6 {[%clk 0:02:34.4]} 9. Nh4 {[%clk 0:02:59]} 9... Be4 {[%clk
0:02:33.7]} 10. f3 {[%clk 0:02:56.8]} 10... Bg6 {[%clk 0:02:33]} 11. e4 {[%clk
0:02:57.2]} 11... dxe4 {[%clk 0:02:27.9]} 12. Nxg6 {[%clk 0:02:57]} 12... hxg6
{[%clk 0:02:28.2]} 13. fxe4 {[%clk 0:02:57.5]} 13... Nbd7 {[%clk 0:02:18.7]} 14.
Qd2 {[%clk 0:02:27.8]} 14... O-O-O {[%clk 0:02:11.5]} 15. O-O-O {[%clk
0:02:13.2]} 15... Qe6 {[%clk 0:02:05.8]} 16. d5 {[%clk 0:01:30.5]} 16... cxd5
{[%clk 0:02:03.6]} 17. exd5 {[%clk 0:01:30.7]} 17... Qb6 {[%clk 0:02:00.9]} 18.
Kb1 {[%clk 0:01:24.7]} 18... Kb8 {[%clk 0:01:59]} 19. Qf4+ {[%clk 0:01:14]}
19... Ka8 {[%clk 0:01:58.1]} 20. d6 {[%clk 0:01:12.6]} 20... Rc8 {[%clk
0:01:53.9]} 21. Bc4 {[%clk 0:00:40.4]} 21... Qb4 {[%clk 0:01:22.3]} 22. Rd4
{[%clk 0:00:39.2]} 22... g5 {[%clk 0:01:22.3]} 23. Qf1 {[%clk 0:00:17.9]} 23...
Ne5 {[%clk 0:01:18]} 24. a3 {[%clk 0:00:14.8]} 24... Qb6 {[%clk 0:01:08.7]} 25.
d7 {[%clk 0:00:11.9]} 25... Qxd4 {[%clk 0:01:07.7]} 26. dxc8=Q+ {[%clk
0:00:11.7]} 26... Rxc8 {[%clk 0:01:08.6]} 27. Bb3 {[%clk 0:00:10.3]} 27... Ne4
{[%clk 0:01:05.1]} 28. Nxe4 {[%clk 0:00:09.1]} 28... Qxe4+ {[%clk 0:01:06]} 29.
Ka2 {[%clk 0:00:09.6]} 29... f6 {[%clk 0:01:03.9]} 30. Qf2 {[%clk 0:00:05.3]}
30... Rd8 {[%clk 0:00:23.7]} 31. Re1 {[%clk 0:00:04.6]} 31... Qf4 {[%clk
0:00:19.5]} 32. Qe2 {[%clk 0:00:03.6]} 32... a6 {[%clk 0:00:17.6]} 33. Rd1
{[%clk 0:00:02.9]} 33... Rxd1 {[%clk 0:00:12]} 34. Qxd1 {[%clk 0:00:03.8]} 34...
Qe3 {[%clk 0:00:11.7]} 35. g3 {[%clk 0:00:03]} 35... Ka7 {[%clk 0:00:11.5]} 36.
Qd6 {[%clk 0:00:02.7]} 36... Nd3 {[%clk 0:00:09.5]} 37. Bd5 {[%clk 0:00:03.1]}
37... Qf2 {[%clk 0:00:06.9]} 0-1

[Event "Late-Titled-Tuesday-Blitz-October-24-2023"]
[Site "Chess.com"]
[Date "2023.10.24"]
[Round "7"]
[White "Deeper44"]
[Black "BardArtem"]
[Result "0-1"]
[WhiteElo "2548"]
[BlackElo "2710"]
[TimeControl "180+1"]
[EndTime "15:15:40 PDT"]
[Termination "BardArtem won by resignation"]

1. d4 {[%clk 0:02:59.7]} 1... d5 {[%clk 0:02:58.9]} 2. c4 {[%clk 0:03:00.3]}
2... c6 {[%clk 0:02:59]} 3. Nf3 {[%clk 0:03:00.7]} 3... Nf6 {[%clk 0:02:59.1]}
4. g3 {[%clk 0:03:00.9]} 4... Bf5 {[%clk 0:02:58.8]} 5. Bg2 {[%clk 0:03:01.2]}
5... e6 {[%clk 0:02:59]} 6. Qb3 {[%clk 0:03:01.5]} 6... Qb6 {[%clk 0:02:55.8]}
7. c5 {[%clk 0:03:02.2]} 7... Qxb3 {[%clk 0:02:50.7]} 8. axb3 {[%clk 0:03:03.1]}
8... a6 {[%clk 0:02:51.4]} 9. Nc3 {[%clk 0:03:01.4]} 9... Nbd7 {[%clk
0:02:50.2]} 10. b4 {[%clk 0:03:01.1]} 10... Rc8 {[%clk 0:02:47.3]} 11. h3 {[%clk
0:03:01]} 11... h6 {[%clk 0:02:45.7]} 12. g4 {[%clk 0:03:00.8]} 12... Bh7 {[%clk
0:02:45]} 13. Bf4 {[%clk 0:03:01.5]} 13... Be7 {[%clk 0:02:44.6]} 14. O-O {[%clk
0:03:00.7]} 14... Bd8 {[%clk 0:02:44.9]} 15. e3 {[%clk 0:02:48.3]} 15... g5
{[%clk 0:02:40.6]} 16. Bh2 {[%clk 0:02:42.7]} 16... Bc7 {[%clk 0:02:40.5]} 17.
Ne5 {[%clk 0:02:42.5]} 17... Nxe5 {[%clk 0:02:36.6]} 18. dxe5 {[%clk 0:02:40.5]}
18... Ne4 {[%clk 0:02:37]} 19. Nxe4 {[%clk 0:01:49.5]} 19... dxe4 {[%clk
0:02:24.6]} 20. Rad1 {[%clk 0:01:45.9]} 20... Rd8 {[%clk 0:02:23]} 21. Rd6
{[%clk 0:01:10.6]} 21... Bxd6 {[%clk 0:02:22.7]} 22. cxd6 {[%clk 0:00:53.9]}
22... Kd7 {[%clk 0:02:19.4]} 23. Rc1 {[%clk 0:00:52.3]} 23... Rhf8 {[%clk
0:02:08.4]} 24. Rc4 {[%clk 0:00:49.3]} 24... f5 {[%clk 0:02:08.3]} 25. exf6
{[%clk 0:00:48.5]} 25... Bf5 {[%clk 0:02:09.2]} 26. gxf5 {[%clk 0:00:48]} 26...
exf5 {[%clk 0:02:05.5]} 27. f3 {[%clk 0:00:34.5]} 27... exf3 {[%clk 0:01:35.9]}
28. Bxf3 {[%clk 0:00:34.3]} 28... Rxf6 {[%clk 0:01:36.5]} 29. e4 {[%clk
0:00:31.3]} 29... Re8 {[%clk 0:01:19.9]} 30. e5 {[%clk 0:00:28.3]} 30... Rfe6
{[%clk 0:01:11.4]} 31. Bh5 {[%clk 0:00:27.2]} 31... Rxe5 {[%clk 0:01:09.2]} 32.
Bxe8+ {[%clk 0:00:26.1]} 32... Rxe8 {[%clk 0:01:10.1]} 33. Rc5 {[%clk
0:00:22.7]} 33... f4 {[%clk 0:01:07.2]} 34. h4 {[%clk 0:00:21]} 34... Re1+
{[%clk 0:01:02.4]} 35. Kf2 {[%clk 0:00:20.5]} 35... Rb1 {[%clk 0:01:00.9]} 36.
hxg5 {[%clk 0:00:19.3]} 36... Rxb2+ {[%clk 0:01:01.4]} 37. Kg1 {[%clk
0:00:19.6]} 37... hxg5 {[%clk 0:00:59.2]} 38. Rxg5 {[%clk 0:00:18.1]} 38... Rxb4
{[%clk 0:00:59.4]} 39. Rg6 {[%clk 0:00:14.9]} 39... a5 {[%clk 0:00:59.8]} 40.
Kg2 {[%clk 0:00:13.6]} 40... a4 {[%clk 0:01:00.4]} 41. Bg1 {[%clk 0:00:12.8]}
41... a3 {[%clk 0:00:56.2]} 42. Rg7+ {[%clk 0:00:10.2]} 42... Kxd6 {[%clk
0:00:54.5]} 43. Rg6+ {[%clk 0:00:09.6]} 43... Kd5 {[%clk 0:00:45.9]} 44. Rg5+
{[%clk 0:00:09.7]} 44... Kc4 {[%clk 0:00:46.7]} 45. Ra5 {[%clk 0:00:09.5]} 45...
Kb3 {[%clk 0:00:47.4]} 46. Bc5 {[%clk 0:00:07]} 46... Ra4 {[%clk 0:00:46.9]} 47.
Rxa4 {[%clk 0:00:06.7]} 47... Kxa4 {[%clk 0:00:47.8]} 48. Kf3 {[%clk 0:00:06.8]}
48... a2 {[%clk 0:00:48.2]} 49. Bd4 {[%clk 0:00:07.1]} 49... Kb3 {[%clk
0:00:46]} 50. Kxf4 {[%clk 0:00:07.5]} 50... Kc2 {[%clk 0:00:46.2]} 51. Ke3
{[%clk 0:00:07.5]} 51... Kb1 {[%clk 0:00:46.8]} 52. Kd3 {[%clk 0:00:07.6]} 52...
a1=Q {[%clk 0:00:47.7]} 53. Bxa1 {[%clk 0:00:08.1]} 53... Kxa1 {[%clk
0:00:48.6]} 54. Kc4 {[%clk 0:00:09]} 54... Kb2 {[%clk 0:00:48.1]} 55. Kc5 {[%clk
0:00:09.9]} 55... Kc3 {[%clk 0:00:49]} 0-1

[Event "Late-Titled-Tuesday-Blitz-October-24-2023"]
[Site "Chess.com"]
[Date "2023.10.24"]
[Round "7"]
[White "KATPAH"]
[Black "ChuckPhil"]
[Result "1-0"]
[WhiteElo "2647"]
[BlackElo "2537"]
[TimeControl "180+1"]
[EndTime "15:15:40 PDT"]
[Termination "KATPAH won by resignation"]

1. e4 {[%clk 0:03:00]} 1... c6 {[%clk 0:03:00.3]} 2. d4 {[%clk 0:03:00.1]} 2...
d5 {[%clk 0:03:00.9]} 3. exd5 {[%clk 0:03:00.5]} 3... cxd5 {[%clk 0:03:01.8]} 4.
c4 {[%clk 0:03:01.4]} 4... Nf6 {[%clk 0:03:01.7]} 5. Nc3 {[%clk 0:03:02]} 5...
g6 {[%clk 0:03:01.6]} 6. Nf3 {[%clk 0:03:02.4]} 6... Bg7 {[%clk 0:03:01.8]} 7.
cxd5 {[%clk 0:03:03]} 7... Nxd5 {[%clk 0:03:01.3]} 8. Bb5+ {[%clk 0:03:03.7]}
8... Nc6 {[%clk 0:03:00.9]} 9. O-O {[%clk 0:03:04.2]} 9... O-O {[%clk
0:03:00.9]} 10. Bxc6 {[%clk 0:03:04.6]} 10... bxc6 {[%clk 0:03:00]} 11. Ne4
{[%clk 0:03:04.5]} 11... Bg4 {[%clk 0:02:57.4]} 12. Be3 {[%clk 0:03:01.5]} 12...
Rb8 {[%clk 0:02:51.3]} 13. b3 {[%clk 0:02:57.1]} 13... f5 {[%clk 0:02:28.2]} 14.
Nc5 {[%clk 0:02:57]} 14... f4 {[%clk 0:02:28.1]} 15. Bc1 {[%clk 0:02:57.1]}
15... e5 {[%clk 0:02:13.6]} 16. dxe5 {[%clk 0:02:51.6]} 16... Bxe5 {[%clk
0:02:13.4]} 17. Rb1 {[%clk 0:02:51.5]} 17... Bg7 {[%clk 0:01:58.7]} 18. Bb2
{[%clk 0:02:48.2]} 18... Bxb2 {[%clk 0:01:42.4]} 19. Rxb2 {[%clk 0:02:49.1]}
19... Nc3 {[%clk 0:01:27.4]} 20. Qc2 {[%clk 0:02:38.5]} 20... Bxf3 {[%clk
0:01:21.1]} 21. Qxc3 {[%clk 0:02:37.1]} 21... Bd5 {[%clk 0:01:19.7]} 22. f3
{[%clk 0:02:32.7]} 22... Re8 {[%clk 0:01:09.5]} 23. Rd2 {[%clk 0:02:29.4]} 23...
Qe7 {[%clk 0:01:07.5]} 24. Kh1 {[%clk 0:01:51.9]} 24... Rb5 {[%clk 0:01:06.1]}
25. Nd3 {[%clk 0:01:45]} 25... Qe3 {[%clk 0:01:01.5]} 26. Qc2 {[%clk 0:01:41.3]}
26... Rb7 {[%clk 0:00:48]} 27. h3 {[%clk 0:01:39.3]} 27... Rbe7 {[%clk
0:00:39.6]} 28. Rdd1 {[%clk 0:01:14.6]} 28... g5 {[%clk 0:00:38.6]} 29. Rfe1
{[%clk 0:01:09.1]} 29... Qb6 {[%clk 0:00:33.9]} 30. Rxe7 {[%clk 0:01:04.7]}
30... Rxe7 {[%clk 0:00:34.8]} 31. Nf2 {[%clk 0:01:04.1]} 31... Qe3 {[%clk
0:00:30.8]} 32. Ng4 {[%clk 0:01:02.2]} 32... Qe6 {[%clk 0:00:19.7]} 33. Qc3
{[%clk 0:00:57.1]} 33... Rf7 {[%clk 0:00:18.3]} 34. Re1 {[%clk 0:00:55.9]} 34...
Qd6 {[%clk 0:00:11.8]} 35. Re8+ {[%clk 0:00:51.9]} 35... Rf8 {[%clk 0:00:12.2]}
36. Re7 {[%clk 0:00:51]} 36... Rf7 {[%clk 0:00:09.6]} 37. Re8+ {[%clk 0:00:43]}
37... Rf8 {[%clk 0:00:09.9]} 38. Re5 {[%clk 0:00:43.6]} 38... Qg6 {[%clk
0:00:07.9]} 39. Re7 {[%clk 0:00:41.1]} 39... h5 {[%clk 0:00:07.9]} 40. Ne5
{[%clk 0:00:38]} 40... Qf6 {[%clk 0:00:08]} 41. Qc5 {[%clk 0:00:34.6]} 41... Be6
{[%clk 0:00:06.9]} 42. Nxc6 {[%clk 0:00:31.5]} 42... Rc8 {[%clk 0:00:07]} 43.
Qd6 {[%clk 0:00:23.9]} 43... Qf8 {[%clk 0:00:04.7]} 44. Qxe6+ {[%clk 0:00:23.6]}
44... Kh8 {[%clk 0:00:05.3]} 45. Qe5+ {[%clk 0:00:23.5]} 45... Kg8 {[%clk
0:00:05.4]} 46. Qxg5+ {[%clk 0:00:24.1]} 1-0